bitfinex/quotes_ETHUSD_20250413
["timestamp","ask_amount","ask_price","bid_price","bid_amount"]
[1744574465352,10.9299,1583.8,1583.5,6.31508]
[1744574465556,10.9299,1583.8,1583.4,6.31539]
[1744574465757,12.0352,1584.1,1583.8,6.31374]
[1744574465958,6.31338,1584.0,1583.4,0.631539]
[1744574466269,18.34796,1584.1,1583.7,6.31417]
[1744574466469,1.5842,1584.1,1583.5,6.31512]
[1744574466645,1.5842,1584.4,1584.2,12.62466]
[1744574466845,1.5842,1584.4,1584.1,6.31256]
[1744574466846,7.89585,1584.4,1584.1,6.31256]
[1744574467043,7.89585,1584.4,1584.0,12.6258]
[1744574467250,7.89585,1584.4,1583.8,6.31359]
[1744574467251,3.418885,1584.4,1583.9,6.31352]
[1744574467455,10.451,1584.5,1584.3,6.31193]
[1744574467837,1.5842,1584.6,1584.3,12.62386]
[1744574468037,1.5842,1584.6,1584.3,6.31193]
[1744574468239,4.5842,1584.6,1584.3,12.62354]
[1744574468479,2.334295,1584.8,1584.5,6.31089]
[1744574468674,4.5842,1584.8,1584.5,6.31089]
[1744574468876,10.452,1584.9,1584.8,6.30994]
[1744574469076,1.5842,1585.0,1584.7,6.31034]
[1744574469371,1.5842,1585.0,1584.7,12.62047]
[1744574469582,1.5006,1585.2,1584.7,7.572357]
[1744574469760,1.5006,1585.2,1584.9,6.30922]
[1744574470153,1.5006,1585.6,1584.9,1.2558]
[1744574470343,1.5006,1585.6,1585.3,6.30764]
[1744574470541,1.5006,1585.6,1585.4,6.30733]
[1744574471045,6.3073,1585.5,1585.1,6.30864]
[1744574471361,0.63073,1585.4,1585.1,6.30864]
[1744574471549,0.63073,1585.4,1585.1,6.30858]
[1744574471746,6.93828,1585.4,1585.1,6.30858]
[1744574471951,0.63073,1585.4,1585.1,6.30858]
[1744574472395,0.63073,1585.4,1585.2,6.30807]
[1744574472544,1.5006,1585.6,1585.4,6.30739]
[1744574472877,1.5006,1585.6,1585.3,6.30794]
[1744574473239,1.5006,1585.6,1585.2,6.30829]
[1744574473240,3.0,1585.7,1585.5,6.30702]
[1744574473574,3.0,1585.7,1585.1,6.30861]
[1744574473740,6.30735,1585.5,1585.1,6.30861]
[1744574473941,7.568761,1585.5,1585.1,12.61715]
[1744574474141,2.1802,1585.3,1584.7,2.517847]
[1744574474391,6.30906,1585.1,1584.6,6.31043]
[1744574474593,6.30916,1585.0,1584.7,6.3103]
[1744574474760,6.30916,1585.0,1584.6,6.31056]
[1744574474761,6.30927,1585.0,1584.6,6.31056]
[1744574474958,3.0,1585.1,1584.8,6.30967]
[1744574475144,8.48833,1585.3,1584.5,6.31113]
[1744574475145,6.30931,1585.0,1584.6,6.31056]
[1744574475346,6.30931,1585.0,1584.6,6.31054]
[1744574475585,6.30879,1585.1,1584.7,6.31021]
[1744574475791,6.30879,1585.1,1584.6,6.31054]
[1744574475792,0.750095,1585.2,1584.6,0.06310488]
[1744574475991,1.663,1585.5,1585.0,6.30886]
[1744574476158,6.30655,1585.7,1585.3,6.30789]
[1744574476359,3.0,1585.6,1585.3,12.61568]
[1744574476560,3.0,1585.6,1585.4,6.30748]
[1744574476895,1.663,1585.8,1585.4,6.30748]
[1744574476896,7.96907,1585.8,1585.5,6.30708]
[1744574477058,0.796907,1585.7,1585.5,6.30708]
[1744574477262,3.796907,1585.7,1585.4,12.6149]
[1744574477479,9.30688,1585.6,1585.2,6.30817]
[1744574477682,3.0,1585.6,1585.3,6.30777]
[1744574477907,3.0,1585.6,1584.8,1.2558]
[1744574477908,4.0103297,1585.6,1584.8,1.2558]
[1744574478060,1.663,1585.8,1585.5,6.30692]
[1744574478261,4.663,1585.8,1585.5,6.30692]
[1744574478461,10.96917,1585.8,1585.4,6.30748]
[1744574478675,10.96917,1585.8,1585.4,6.30735]
[1744574478877,6.4654875,1585.8,1585.5,12.61399]
[1744574479178,6.4654875,1585.8,1585.5,6.30696]
[1744574479383,6.30706,1585.6,1585.2,6.30819]
[1744574479900,6.30706,1585.6,1585.2,12.61636]
[1744574480192,6.307,1585.6,1585.1,6.30867]
[1744574480407,0.6307,1585.5,1585.1,0.06307901]
[1744574480612,0.6307,1585.5,1585.3,6.30775]
[1744574480766,6.30692,1585.6,1585.2,6.30829]
[1744574481105,6.4654875,1585.8,1585.2,6.30829]
[1744574481284,6.30701,1585.6,1585.2,6.30816]
[1744574481484,6.30701,1585.6,1585.0,1.2558]
[1744574481485,6.308,1585.3,1585.0,1.2558]
[1744574481695,7.09602,1585.3,1584.9,6.30941]
[1744574482072,0.750095,1585.2,1584.7,7.56587]
[1744574482284,6.31012,1584.8,1584.5,7.56693]
[1744574482490,12.62031,1584.8,1584.4,6.31151]
[1744574482696,6.31012,1584.8,1584.4,6.31141]
[1744574482896,6.31012,1584.8,1584.4,12.62277]
[1744574483197,6.30987,1584.9,1584.5,6.31113]
[1744574483414,6.31014,1584.8,1584.4,12.62284]
[1744574483572,6.30963,1584.9,1584.5,6.31106]
[1744574483776,6.30955,1584.9,1584.5,6.31078]
[1744574484079,6.30955,1584.9,1584.6,6.3106]
[1744574484677,9.30928,1585.0,1584.6,6.37382402]
[1744574484873,10.3152175,1585.0,1584.6,6.31057]
[1744574485096,16.6245775,1585.0,1584.7,6.31024]
[1744574485381,6.30959,1584.9,1584.6,12.62116]
[1744574485624,4.0059375,1585.0,1584.7,6.31017]
[1744574485787,6.71030375,1584.9,1584.6,6.31069]
[1744574485983,1.0059375,1585.0,1584.5,0.06310087]
[1744574486303,0.750095,1585.1,1585.0,6.30914]
[1744574486610,0.750095,1585.6,1585.3,6.30795]
[1744574486790,1.5259,1585.7,1585.4,6.30716]
[1744574487102,6.306,1585.8,1585.4,12.61457]
[1744574487303,7.055275,1586.0,1585.6,6.30654]
[1744574487511,0.750095,1586.0,1585.6,6.30676]
[1744574487672,0.750095,1586.0,1585.8,6.30582]
[1744574487871,7.103705,1586.4,1586.0,6.30513]
[1744574488075,4.00946885,1586.2,1586.0,12.61014]
[1744574488491,4.00946885,1586.2,1586.0,6.30501]
[1744574488706,10.31385885,1586.2,1585.9,6.30552]
[1744574489389,5.67125574,1586.2,1585.8,6.30591]
[1744574489573,4.00946885,1586.2,1585.7,1.8058]
[1744574489769,4.00946885,1586.2,1586.0,7.56097]
[1744574490005,4.00946885,1586.2,1586.0,13.86594]
[1744574490205,4.00946885,1586.2,1586.1,6.30477]
[1744574490781,8.85e-06,1586.2,1586.1,11.17360939]
[1744574491139,5.2123095,1586.6,1586.4,1.2558]
[1744574491290,9.5e-06,1586.6,1586.5,18.61699975]
[1744574491499,0.05,1587.4,1587.1,6.30051]
[1744574491683,0.05,1587.4,1587.2,6.3633468]
[1744574492041,0.05,1587.4,1587.3,6.3]
[1744574492181,0.05,1587.4,1587.3,8.312693]
[1744574492378,0.05,1587.4,1587.3,8.37567687]
[1744574492941,0.05,1587.4,1586.9,1.2558]
[1744574493085,0.05,1587.4,1587.3,6.3]
[1744574493411,0.05,1587.4,1587.3,7.5558]
[1744574494010,0.05,1587.4,1587.3,10.5558]
[1744574494379,0.05,1587.4,1587.3,7.5558]
[1744574494581,0.05,1587.4,1587.3,12.5543858]
[1744574494780,9.5e-06,1587.8,1587.7,10.55421]
[1744574495085,9.5e-06,1587.8,1587.7,20.9037806]
[1744574495702,9.5e-06,1587.8,1587.7,17.9037806]
[1744574495904,0.05,1588.4,1588.0,6.29722]
[1744574496110,6.29608,1588.3,1587.9,6.2975]
[1744574496286,0.05,1588.4,1587.9,0.62975]
[1744574496486,0.05,1588.4,1588.2,6.29625]
[1744574496681,0.05,1588.4,1588.1,12.59344]
[1744574497116,0.05,1588.4,1588.1,6.29662]
[1744574497313,0.05,1588.4,1587.7,1.2558]
[1744574497512,0.05,1588.4,1587.8,6.29767]
[1744574497513,12.59258,1588.3,1587.8,6.29767]
[1744574497714,0.05,1588.4,1588.0,6.29719]
[1744574497922,6.29613,1588.3,1587.9,6.36054597]
[1744574498089,0.05,1588.4,1588.2,6.29641]
[1744574498299,0.05,1588.4,1587.9,6.29757]
[1744574498490,6.29644,1588.2,1587.8,6.29782]
[1744574498717,6.926084,1588.2,1587.8,16.68282]
[1744574499217,0.629644,1588.2,1587.8,16.68279]
[1744574499424,6.29683,1588.1,1587.8,10.385]
[1744574499713,6.29683,1588.1,1587.7,1.2558]
[1744574500015,6.29683,1588.1,1587.7,1.31877428]
[1744574500215,6.29769,1587.9,1587.5,17.93663]
[1744574500418,7.82314,1588.2,1587.8,6.29775]
[1744574500717,0.05,1588.4,1588.2,6.29619]
[1744574501089,0.05,1588.4,1588.1,22.97536]
[1744574501284,0.05,1588.4,1588.2,6.29641]
[1744574501526,0.05,1588.4,1588.1,6.2967]
[1744574501732,6.34565,1588.4,1588.2,10.382]
[1744574502030,6.29647,1588.2,1587.9,10.382]
[1744574502390,6.29703,1588.1,1587.8,1.2558]
[1744574502621,6.29703,1588.1,1587.7,22.97843]
[1744574502819,6.29608,1588.3,1587.9,6.29757]
[1744574503220,2.211265,1588.4,1587.8,6.29797]
[1744574503429,6.29728,1588.0,1587.8,10.379]
[1744574503723,6.29686,1588.1,1587.8,10.379]
[1744574503887,6.28976543,1588.3,1587.9,6.36047839]
[1744574504222,2.211265,1588.4,1587.9,0.06296839]
[1744574504409,6.29718,1588.1,1587.8,10.379]
[1744574504591,6.29618,1588.3,1587.9,6.3605084]
[1744574504791,6.29648,1588.2,1587.8,18.6879398]
[1744574505006,6.29697,1588.1,1587.8,10.379]
[1744574505411,0.05,1588.4,1588.2,6.29618]
[1744574505620,0.05,1588.4,1588.3,0.06295388]
[1744574505810,0.05,1588.4,1588.3,6.29603]
[1744574505997,0.05,1588.4,1588.1,6.29668]
[1744574506213,0.05,1588.4,1588.1,13.978347]
[1744574506413,0.05,1588.4,1588.2,6.29638]
[1744574506603,1e-05,1588.4,1588.3,21.54277935]
[1744574506797,6.34175,1589.4,1588.6,1.2558]
[1744574507005,6.34175,1589.4,1589.0,12.58605]
[1744574507198,6.34175,1589.4,1589.0,24.222655]
[1744574507400,6.34174,1589.4,1589.0,11.636605]
[1744574507803,6.29222,1589.3,1589.0,11.636605]
[1744574508024,6.34174,1589.4,1589.0,17.929725]
[1744574508603,6.29253,1589.2,1589.0,10.378]
[1744574508924,0.00359762,1589.1,1589.0,10.378]
[1744574509818,0.05,1589.4,1589.0,10.378]
[1744574510123,6.34171,1589.4,1589.0,16.67126]
[1744574510324,0.05,1589.4,1589.3,6.29207]
[1744574510499,0.05,1589.4,1589.3,6.921277]
[1744574511308,0.05,1589.4,1589.0,6.29321]
[1744574511508,0.05,1589.4,1589.1,16.66768]
[1744574511727,6.34195,1589.4,1589.1,10.375]
[1744574512026,0.05,1589.4,1589.1,10.375]
[1744574512194,0.05,1589.4,1589.2,6.29232]
[1744574512394,0.05,1589.4,1589.2,8.3039068]
[1744574512594,0.05,1589.4,1589.2,2.0115868]
[1744574512798,6.34182,1589.4,1589.2,2.0115868]
[1744574513226,12.58446,1589.3,1589.1,10.375]
[1744574513429,1.5611,1589.3,1588.8,10.372]
[1744574513727,6.29328,1589.0,1588.7,6.29424]
[1744574513907,6.29328,1589.0,1588.6,13.8454]
[1744574514103,12.58683,1589.0,1588.6,9.97234]
[1744574514330,12.58683,1589.0,1588.6,6.2948]
[1744574514626,6.29252,1589.2,1588.7,6.29424]
[1744574514829,6.29302,1589.1,1588.7,12.58848]
[1744574514993,6.29302,1589.1,1588.7,6.29424]
[1744574515199,6.2933,1589.0,1588.7,6.29424]
[1744574515418,6.2933,1589.0,1588.6,12.58942]
[1744574515599,6.29302,1589.1,1588.7,6.29427]
[1744574516629,6.29302,1589.1,1588.8,6.29388]
[1744574517534,6.29302,1589.1,1588.7,6.29427]
[1744574517535,6.29346,1589.0,1588.6,8.590952]
[1744574517705,6.29346,1589.0,1588.7,0.06293784]
[1744574517907,6.29295,1589.1,1588.7,0.06293784]
[1744574518114,6.29247,1589.2,1588.7,0.06293784]
[1744574518431,7.88275,1588.9,1588.5,6.29518]
[1744574518599,7.88275,1588.9,1588.4,7.5514]
[1744574518600,6.29501,1588.6,1588.3,54.023]
[1744574518799,6.29501,1588.6,1588.2,6.29636]
[1744574518800,6.29541,1588.5,1588.2,6.29636]
[1744574519004,6.29541,1588.5,1588.2,12.59267]
[1744574519231,1.5888,1588.9,1588.5,6.29485]
[1744574519438,1.5888,1588.9,1588.6,6.29472]
[1744574519636,14.17637,1588.9,1588.5,6.29495]
[1744574519837,7.88249,1588.9,1588.5,12.59006]
[1744574520142,14.17071,1589.1,1588.7,12.5885]
[1744574520324,3.0,1589.0,1588.4,7.55141]
[1744574520634,12.58886,1588.8,1588.4,13.84686]
[1744574520862,1.5682,1588.8,1588.3,7.555137]
[1744574521020,12.5902,1588.6,1588.2,12.59276]
[1744574521201,6.2951,1588.6,1588.2,12.59276]
[1744574521406,0.48344322,1589.0,1588.9,6.29366]
[1744574521656,0.05,1589.4,1589.3,6.29207]
[1744574521955,0.05,1589.4,1589.3,7.676086]
[1744574522176,0.05,1589.4,1589.3,6.29207]
[1744574522848,0.05,1589.4,1589.3,16.68097884]
[1744574523146,0.05,1589.4,1589.3,19.61807]
[1744574523348,6.7e-06,1589.5,1589.4,9.29168]
[1744574523645,6.7e-06,1589.5,1589.4,13.493455]
[1744574523848,6.7e-06,1589.5,1589.4,13.59748]
[1744574524064,1.5689,1590.3,1590.1,6.28874]
[1744574524258,10.89574624,1590.8,1590.2,6.28851]
[1744574524259,1.5689,1590.5,1590.2,6.28851]
[1744574524427,7.85569,1590.7,1590.2,12.6394166]
[1744574524656,3.0,1590.6,1590.2,6.3511366]
[1744574524836,1.5689,1590.7,1590.3,6.28812]
[1744574525340,1.5689,1590.7,1590.2,8.24204979]
[1744574525341,1.5689,1590.7,1590.2,6.28826]
[1744574525673,6.28701,1590.6,1590.2,12.57651]
[1744574525887,7.85582,1590.7,1590.3,6.28812]
[1744574526273,0.01974624,1590.8,1590.3,6.28812]
[1744574526442,0.01974624,1590.8,1590.3,7.54392]
[1744574526765,0.01974624,1590.8,1590.3,8.927137]
[1744574527074,0.01974624,1590.8,1590.3,19.31400166]
[1744574527250,0.01974624,1590.8,1590.3,19.251137]
[1744574528463,0.01974624,1590.8,1590.7,6.28654]
[1744574528676,0.3926067,1591.1,1591.0,6.28535]
[1744574528874,0.3926067,1591.1,1591.0,6.34818521]
[1744574529076,0.3926067,1591.1,1591.0,6.28535]
[1744574529240,0.3926067,1591.1,1590.8,6.2859]
[1744574529439,0.3926067,1591.1,1590.7,6.28644]
[1744574529656,0.3926067,1591.1,1591.0,6.28535]
[1744574530142,0.3426067,1591.1,1591.0,6.28535]
[1744574530342,0.3426067,1591.1,1591.0,7.54115]
[1744574530579,0.3426067,1591.1,1591.0,7.60398662]
[1744574530950,0.3426067,1591.1,1591.0,10.54115]
[1744574531179,0.3426067,1591.1,1591.0,12.22384]
[1744574531378,6.7e-06,1591.1,1591.0,12.2866696]
[1744574531579,6.7e-06,1591.1,1591.0,17.73091651]
[1744574531755,0.02,1591.4,1591.3,7.53997]
[1744574532287,0.02,1591.4,1591.2,6.2844]
[1744574532487,6.28417,1591.3,1590.9,6.28557]
[1744574532659,2.195817,1591.2,1590.8,6.28609]
[1744574532861,8.480547,1591.2,1590.8,6.28609]
[1744574533185,6.28511,1591.1,1590.7,6.2864]
[1744574533355,6.28511,1591.1,1590.7,6.28639]
[1744574533562,6.28511,1591.1,1590.4,61.98583651]
[1744574533563,6.28496,1591.1,1590.8,6.28591]
[1744574533797,7.7614947,1591.1,1590.8,6.28591]
[1744574534094,1.4765347,1591.1,1590.7,6.28651]
[1744574534316,6.28553,1591.0,1590.5,6.28717]
[1744574534460,6.28553,1591.0,1590.3,10.314]
[1744574534461,1.5674,1591.0,1590.3,16.60211]
[1744574534805,1.5674,1591.0,1590.8,6.28576]
[1744574534964,1.5674,1591.0,1590.6,6.28659]
[1744574535163,7.85314,1591.0,1590.6,12.57333]
[1744574535364,14.13873,1591.0,1590.6,6.28659]
[1744574535583,7.85299,1591.0,1590.6,6.28659]
[1744574535784,6.2865,1590.8,1590.4,6.28753]
[1744574536069,2.981199,1591.0,1590.6,6.28693]
[1744574536266,4.5674,1591.0,1590.4,6.28758]
[1744574536470,6.2859,1590.9,1590.5,6.2873]
[1744574536708,7.85395,1590.7,1590.2,6.28816]
[1744574537007,7.85395,1590.7,1590.5,6.28705]
[1744574537008,1.5674,1590.7,1590.5,6.28705]
[1744574537215,6.28617,1590.8,1590.5,6.28705]
[1744574537401,10.91263,1590.9,1590.5,12.57421]
[1744574537595,7.377701,1590.9,1590.6,6.28673]
[1744574537777,7.377701,1590.9,1590.4,6.28769]
[1744574537972,6.28645,1590.8,1590.4,6.28769]
[1744574538174,13.663491,1590.9,1590.4,6.28758]
[1744574538470,6.28628,1590.8,1590.4,12.57516]
[1744574538915,6.28668,1590.7,1590.3,6.2881]
[1744574539213,12.57354,1590.7,1590.3,6.2881]
[1744574539415,6.28668,1590.7,1590.3,6.2881]
[1744574539740,14.5675271,1590.8,1590.4,6.28764]
[1744574539942,12.5735,1590.7,1590.3,6.28807]
[1744574540156,6.28709,1590.6,1590.2,6.28848]
[1744574540431,1.6265,1590.5,1590.3,6.28793]
[1744574541211,1.6265,1590.5,1590.3,12.57584]
[1744574541432,1.6265,1590.5,1590.3,6.28791]
[1744574541993,1.6265,1590.5,1590.0,6.28916]
[1744574542200,12.57665,1590.3,1589.9,6.28963]
[1744574542497,6.28832,1590.3,1589.9,12.57913]
[1744574542694,1.257665,1590.3,1589.9,6.28957]
[1744574542999,1.6265,1590.5,1590.1,6.28891]
[1744574543193,1.6265,1590.7,1590.6,6.28693]
[1744574543424,1.6265,1591.1,1590.8,6.2858]
[1744574543632,1.6265,1591.1,1590.8,6.28586]
[1744574543829,1.6265,1591.1,1591.0,6.28535]
[1744574544029,1.6465,1591.4,1591.1,12.5695]
[1744574544215,2.439511,1591.4,1590.4,11.5698]
[1744574544417,7.91186,1591.0,1590.6,12.57368]
[1744574544849,1.6265,1591.0,1590.8,6.28576]
[1744574545148,1.6265,1591.0,1590.9,6.28575]
[1744574545348,1.6265,1591.0,1590.7,12.57294]
[1744574545646,1.6265,1591.2,1591.0,12.57034]
[1744574545852,1.6265,1591.2,1590.9,6.28569]
[1744574546060,4.6265,1591.2,1590.9,6.28569]
[1744574546230,4.6265,1591.2,1591.0,6.2852]
[1744574546431,1.6265,1591.2,1591.1,6.28496]
[1744574546927,0.2,1592.5,1591.1,1.26329869]
[1744574547131,1.6465,1593.4,1592.3,0.55]
[1744574547428,0.02,1593.4,1593.2,6.47656]
[1744574547631,0.02,1593.4,1593.1,6.27688]
[1744574547872,0.02,1593.4,1593.0,0.2]
[1744574548052,6.29591,1593.4,1592.7,6.47839]
[1744574548259,0.629591,1593.3,1592.9,0.2]
[1744574548460,1.5936,1593.2,1592.9,0.2]
[1744574548960,1.5936,1593.2,1592.4,0.2]
[1744574549261,6.27838,1592.8,1592.3,6.27986]
[1744574549475,9.82786,1592.9,1592.4,0.2]
[1744574549676,0.982786,1592.8,1592.4,6.4798]
[1744574549889,1.5936,1593.2,1592.7,6.47864]
[1744574550095,6.27711,1593.1,1592.7,0.2]
[1744574550237,3.0,1593.1,1592.7,0.2]
[1744574550742,3.0,1593.1,1592.7,6.47841]
[1744574551264,3.0,1593.1,1592.7,0.2]
[1744574551468,3.0,1593.1,1592.7,6.47841]
[1744574551763,3.0,1593.1,1592.8,6.27807]
[1744574551977,3.0,1593.1,1592.5,0.2]
[1744574551978,1.5936,1593.2,1592.4,0.2]
[1744574552287,9.8299,1592.4,1591.9,6.48157]
[1744574552570,0.98299,1592.3,1592.0,0.2]
[1744574552749,0.98299,1592.3,1592.1,6.28093]
[1744574552944,6.28043,1592.3,1591.8,6.482]
[1744574553267,4.5015,1592.0,1591.7,0.2]
[1744574553455,1.5015,1592.0,1591.5,6.48335]
[1744574553659,6.28268,1591.7,1591.3,0.2]
[1744574554176,9.28405,1591.4,1591.0,0.2]
[1744574554371,0.928405,1591.3,1591.0,0.2]
[1744574554539,0.928405,1591.3,1591.1,0.2]
[1744574554740,0.928405,1591.3,1590.9,6.48555]
[1744574554945,0.55,1591.2,1590.7,0.2]
[1744574555180,7.78768,1590.8,1590.5,0.2]
[1744574555477,9.195024,1590.8,1590.4,0.2]
[1744574555687,6.2873,1590.6,1590.3,0.2]
[1744574555856,2.908844,1590.8,1590.5,6.28713]
[1744574556057,1.5015,1590.8,1590.3,0.2]
[1744574556291,6.28693,1590.7,1590.3,6.48812]
[1744574556573,10.78766,1590.8,1590.2,6.48851]
[1744574556574,4.5015,1590.8,1590.2,6.48851]
[1744574556881,6.2873,1590.6,1590.3,0.2]
[1744574557480,6.2875,1590.5,1590.2,0.2]
[1744574557779,9.28663,1590.7,1590.3,6.4881]
[1744574557961,15.57354,1590.7,1590.3,0.2]
[1744574558342,6.28736,1590.5,1590.2,0.2]
[1744574558645,6.28776,1590.4,1590.1,0.22]
[1744574558853,7.216536,1590.4,1590.1,0.22]
[1744574559058,3.0,1590.4,1590.1,0.22]
[1744574559475,7.78788,1590.8,1590.3,6.28789]
[1744574559650,1.5015,1590.8,1590.2,6.48848]
[1744574559977,7.78767,1590.8,1590.2,0.2]
[1744574560181,7.78767,1590.8,1590.1,0.08287874]
[1744574560182,1.5015,1590.8,1590.4,0.2]
[1744574560364,8.621422,1590.8,1590.4,6.48757]
[1744574560565,6.28654,1590.7,1590.4,0.2]
[1744574560772,2.335252,1590.8,1590.4,0.2]
[1744574561178,3.0,1590.7,1590.4,6.28771]
[1744574561354,3.0,1590.9,1590.5,6.487]
[1744574561687,1.6387,1591.1,1590.9,0.2]
[1744574562087,1.6387,1591.1,1590.6,0.2]
[1744574562088,4.6387,1591.1,1590.6,0.2]
[1744574562254,4.6387,1591.1,1590.3,0.2]
[1744574562255,6.28713,1590.6,1590.3,0.2]
[1744574562655,6.28713,1590.6,1590.4,0.2]
[1744574562864,6.28713,1590.6,1590.3,0.2]
[1744574563069,12.57436,1590.6,1590.3,0.2]
[1744574563266,6.28772,1590.4,1590.2,0.2]
[1744574563469,6.28851,1590.2,1590.1,0.02]
[1744574565411,3.0,1590.3,1590.1,0.02]
[1744574565709,9.28832,1590.3,1590.1,0.02]
[1744574566497,6.28851,1590.2,1590.1,0.02]
[1744574568275,1.6462,1591.7,1591.3,0.2]
[1744574568495,7.9288,1591.7,1591.3,6.48389]
[1744574568811,8.72168,1591.7,1591.3,12.76783]
[1744574568992,7.92774,1592.0,1591.5,6.48318]
[1744574569308,1.6462,1592.0,1591.5,0.2]
[1744574569485,1.6462,1592.0,1591.3,6.28415]
[1744574569486,6.28278,1591.7,1591.4,0.2]
[1744574569670,6.28278,1591.7,1591.5,0.2]
[1744574569887,3.0,1591.8,1591.5,0.2]
[1744574570123,7.92763,1592.0,1591.5,0.2]
[1744574570305,6.28266,1591.7,1591.5,0.2]
[1744574570492,3.0,1591.8,1591.5,0.2]
[1744574570693,15.002013,1592.0,1591.6,6.28277]
[1744574570895,3.0,1591.9,1591.6,6.28277]
[1744574571393,6.2825,1591.8,1591.5,0.2]
[1744574571755,6.283,1591.6,1591.3,0.2]
[1744574571912,6.283,1591.6,1591.4,0.2]
[1744574572516,6.283,1591.6,1591.3,0.2]
[1744574572709,6.28342,1591.5,1591.3,0.2]
[1744574573199,12.56708,1591.5,1591.3,0.2]
[1744574573411,12.56708,1591.5,1591.2,0.2]
[1744574573412,6.28395,1591.4,1591.2,0.2]
[1744574573816,13.823788,1591.5,1591.2,0.2]
[1744574574014,6.28391,1591.4,1591.2,0.2]
[1744574574327,10.540218,1591.5,1591.2,0.2]
[1744574574515,6.2838,1591.4,1591.2,0.2]
[1744574575123,10.540218,1591.5,1591.2,0.2]
[1744574575334,6.28298,1591.6,1591.2,6.54736413]
[1744574575623,6.28298,1591.6,1591.3,0.2]
[1744574575624,6.28338,1591.5,1591.3,0.2]
[1744574576040,6.28298,1591.6,1591.3,0.2]
[1744574576234,6.2834,1591.5,1591.3,0.2]
[1744574576529,12.56704,1591.5,1591.2,0.2]
[1744574576926,6.2834,1591.5,1591.2,0.2]
[1744574577131,6.2834,1591.5,1591.3,0.2]
[1744574577633,1.6329,1591.4,1591.0,0.2]
[1744574577821,12.56891,1591.3,1591.1,0.2]
[1744574577996,6.28456,1591.2,1591.1,0.2]
[1744574578195,12.56938,1591.2,1591.0,0.2]
[1744574578401,6.2845,1591.3,1591.0,0.2]
[1744574578600,6.2845,1591.3,1591.0,6.48529]
[1744574578808,12.56888,1591.3,1590.9,12.77115]
[1744574579100,12.56888,1591.3,1591.0,0.2]
[1744574579523,6.28463,1591.2,1591.0,0.2]
[1744574580127,6.28463,1591.2,1590.9,6.48553]
[1744574580327,4.6329,1591.4,1591.0,0.2]
[1744574580537,3.55,1591.6,1591.0,0.26284476]
[1744574580697,6.28424,1591.3,1591.0,0.2]
[1744574581040,6.28459,1591.2,1591.0,0.2]
[1744574581272,3.0,1591.3,1590.9,0.26284546]
[1744574581406,12.57048,1591.1,1590.9,0.2]
[1744574581601,9.28417,1591.3,1590.9,0.2]
[1744574581602,6.28447,1591.3,1590.9,6.48557]
[1744574581909,14.021095,1591.4,1591.2,6.28443]
[1744574581910,3.750095,1591.4,1591.2,6.28443]
[1744574582517,6.28436,1591.3,1591.1,0.2]
[1744574582718,0.750095,1591.4,1591.3,6.28417]
[1744574582937,0.750095,1591.4,1591.3,6.48417]
[1744574583156,0.750095,1591.4,1591.2,0.2]
[1744574583464,7.033955,1591.4,1591.3,0.2]
[1744574583764,6.28431,1591.3,1591.1,0.2]
[1744574583920,12.56881,1591.3,1591.1,0.2]
[1744574584256,12.56882,1591.3,1591.1,0.2]
[1744574584453,6.28456,1591.2,1591.1,0.2]
[1744574584756,6.2851,1591.1,1590.9,0.2]
[1744574585065,6.28456,1591.2,1591.1,0.2]
[1744574585655,6.28456,1591.2,1590.7,1.2558]
[1744574585656,12.57026,1591.1,1590.9,0.2]
[1744574587078,12.57011,1591.1,1590.9,0.2]
[1744574587355,6.28499,1591.1,1590.9,0.2]
[1744574588825,12.57013,1591.1,1590.9,0.2]
[1744574589429,6.28499,1591.1,1590.9,0.2]
[1744574590455,6.28426,1591.3,1591.0,6.28533]
[1744574590752,2.0818455,1591.4,1591.3,6.28417]
[1744574590753,0.750095,1591.4,1591.3,6.28417]
[1744574590953,0.750095,1591.4,1591.3,6.54700721]
[1744574591153,0.750095,1591.9,1591.8,6.48219]
[1744574591354,0.750095,1592.2,1591.9,6.48152]
[1744574591656,10.8891395,1592.2,1591.9,0.2]
[1744574592022,6.28124,1592.1,1591.9,0.2]
[1744574592227,17.1698195,1592.2,1591.9,0.2]
[1744574592439,6.2814,1592.0,1591.9,0.2]
[1744574592635,6.2814,1592.0,1591.6,0.2]
[1744574592835,6.28219,1591.8,1591.7,0.2]
[1744574593038,12.56376,1591.9,1591.7,0.2]
[1744574593561,3.0,1592.0,1591.7,6.48251]
[1744574593758,0.750095,1592.2,1592.0,6.48123]
[1744574593940,0.750095,1592.2,1592.0,6.54403622]
[1744574594138,2.382095,1592.6,1592.1,0.2]
[1744574594458,0.750095,1592.6,1592.3,6.48003]
[1744574594759,0.750095,1592.6,1592.4,0.2]
[1744574594965,0.750095,1592.6,1592.5,0.2]
[1744574595132,7.028125,1592.9,1592.6,0.2]
[1744574595330,0.750095,1592.9,1592.6,0.2]
[1744574595544,6.27864,1592.7,1592.5,0.2]
[1744574595736,6.27863,1592.8,1592.6,0.2]
[1744574595950,6.27879,1592.7,1592.5,0.2]
[1744574596164,7.028785,1592.7,1592.4,0.2]